Workbook

Sheet DASHBOARD
G2: Year: | L2: Region: | S2: Category:
C3: Sales Analysis Dashboard
G5: =Drivers!$J$20 -> Location performance: Condiments 2015
C14: Product Category Performance | J14: =Drivers!$J$19 -> Sales Agents Performance in South Coast location in 2015 | S14: =Drivers!J18 -> Product Revenue Share (in $ '000) :- South Coast, Condiments for 2015
C15: P12M Trend | D15: Category | E15: =selYR-1 -> 2014 | F15: =selYR -> 2015 | G15: Trend
D16: =Calculations!S19 -> Beverages | E16: =Calculations!T19 -> 96089.5 | F16: =Calculations!U19 -> 246518.7845 | G16: =Calculations!V19 -> 1.565512199
D17: =Calculations!S20 -> Condiments | E17: =Calculations!T20 -> 58261 | F17: =Calculations!U20 -> 108130.6169 | G17: =Calculations!V20 -> 0.8559691202
D18: =Calculations!S21 -> Confections | E18: =Calculations!T21 -> 98333.5 | F18: =Calculations!U21 -> 86655.96322 | G18: =Calculations!V21 -> -0.1187544101
D19: =Calculations!S22 -> Dairy Products | E19: =Calculations!T22 -> 189416.5 | F19: =Calculations!U22 -> 168232.5691 | G19: =Calculations!V22 -> -0.1118378333
D20: =Calculations!S23 -> Grains/Cereals | E20: =Calculations!T23 -> 46567 | F20: =Calculations!U23 -> 74614.71905 | G20: =Calculations!V23 -> 0.6023089109
D21: =Calculations!S24 -> Meat/Poultry | E21: =Calculations!T24 -> 62325 | F21: =Calculations!U24 -> 87254.90162 | G21: =Calculations!V24 -> 0.3999984215
D22: =Calculations!S25 -> Produce | E22: =Calculations!T25 -> 75281.5 | F22: =Calculations!U25 -> 165605.9179 | G22: =Calculations!V25 -> 1.199822239
D23: =Calculations!S26 -> Seafood | E23: =Calculations!T26 -> 86857 | F23: =Calculations!U26 -> 106663.8554 | G23: =Calculations!V26 -> 0.2280398287
C25: Author: William K. Wonder

Sheet Calculations
A1: Year | B1: 2015 | F1: Revenue Performance by Location | L1: Yearly Trend Analysis | S1: Product Category and products performance | AL1: Sales Agent Performance
A2: Location | B2: South Coast | F2: YTDDates | G2: YTD
A3: Category Name | B3: Condiments | F3: Year | G3: 2015 | S3: YTDDates | T3: YTD | AL3: Year | AM3: 2015
F4: Category Name | G4: Condiments | L4: Location | M4: South Coast | S4: Location | T4: South Coast | AL4: Location | AM4: South Coast
A6: YTD Revenue | F6: Row Labels | G6: Revenue | H6: Revenue,% | L6: Sum of Sales | M6: Column Labels | S6: Sum of Sales | AL6: Sales Agents | AM6: Revenue
F7: East Coast | G7: 156161.2899 | H7: 0.3622994553 | L7: Row Labels | M7: 2014 | N7: 2015 | O7: 2016 | T7: 2014 | U7: 2015 | V7: 2016 | AL7: Jarison. P | AM7: 177892.0267
A8: YTDDates | B8: YTD | F8: South Coast | G8: 108130.6169 | H8: 0.2508666753 | L8: Jan | M8: 120740.5 | N8: 133889.2374 | O8: 240794.9859 | S8: Beverages | T8: 96089.5 | U8: 246518.7845 | V8: 121233.2302 | AL8: Moodley. L | AM8: 239313.3193
A9: Category Name | B9: Condiments | F9: North Coast | G9: 88115.06041 | H9: 0.2044299097 | L9: Feb | M9: 100624 | N9: 163340.7841 | O9: 166880.9844 | S9: Condiments | T9: 58261 | U9: 108130.6169 | V9: 129741.4575 | AL9: Kinsly. N | AM9: 243234.471
F10: West Coast | G10: 78621.25436 | H10: 0.1824039597 | L10: Mar | M10: 98065.5 | N10: 147364.5735 | O10: 198676.825 | S10: Confections | T10: 98333.5 | U10: 86655.96322 | V10: 240004.3349 | AL10: Lumford. T | AM10: 265902.5804
A11: Row Labels | B11: Revenue | C11: YoY% | F11: Grand Total | G11: 431028.2216 | H11: 1 | L11: Apr | M11: 86795.5 | N11: 126780.3969 | O11: 337714.0865 | S11: Dairy Products | T11: 189416.5 | U11: 168232.5691 | V11: 347835.0187 | AL11: Hannis. H | AM11: 269169.6216
A12: 2014 | B12: 274834.5 | L12: May | M12: 197580 | N12: 235086.7372 | O12: 171966.7845 | S12: Grains/Cereals | T12: 46567 | U12: 74614.71905 | V12: 81579.05609 | AL12: Ilknis. K | AM12: 333632.6727
A13: 2015 | B13: 431028.2216 | C13: 0.5683191942 | L13: Jun | M13: 109325.5 | N13: 237215.5984 | O13: 189629.5 | S13: Meat/Poultry | T13: 62325 | U13: 87254.90162 | V13: 209665.222 | AL13: Franly. S | AM13: 351830.0982
A14: 2016 | B14: 648277.2502 | C14: 0.5040250679 | L14: Jul | M14: 163361.5 | N14: 200882.7844 | S14: Produce | T14: 75281.5 | U14: 165605.9179 | V14: 90858.76072 | AL14: Grooner. T | AM14: 523454.9147
A15: Grand Total | B15: 1354139.972 | F15: Region | G15: Revenue, % | H15: Dummy | L15: Aug | M15: 164375 | N15: 267753.0146 | S15: Seafood | T15: 86857 | U15: 106663.8554 | V15: 84746.08607
F16: =$F7 -> East Coast | G16: =VLOOKUP($F16,$F$7:$H$10,3,FALSE) -> 0.3622994553 | H16: =1-$G16 -> 0.6377005447 | L16: Sep | M16: 119325.5 | N16: 163345.391
F17: =$F8 -> South Coast | G17: =VLOOKUP($F17,$F$7:$H$10,3,FALSE) -> 0.2508666753 | H17: =1-$G17 -> 0.7491333247 | L17: Oct | M17: 192255 | N17: 252112.3141
F18: =$F9 -> North Coast | G18: =VLOOKUP($F18,$F$7:$H$10,3,FALSE) -> 0.2044299097 | H18: 0.7955700903 | L18: Nov | M18: 117881 | N18: 200477.4364 | R18: P12M Trend | S18: Category | T18: =selYR-1 -> 2014 | U18: =selYR -> 2015 | V18: Trend
F19: =$F10 -> West Coast | G19: =VLOOKUP($F19,$F$7:$H$10,3,FALSE) -> 0.1824039597 | H19: 0.8175960403 | L19: Dec | M19: 204423 | N19: 276181.4364 | S19: Beverages | T19: =IFERROR(VLOOKUP($S19,$S$7:$V$15,MATCH(T$18,$S$7:$V$7,0),FALSE),"") -> 96089.5 | U19: 246518.7845 | V19: =IFERROR(U19/T19-1,"") -> 1.565512199
A20: Year | B20: Revenue | C20: YoY% | S20: Condiments | T20: 58261 | U20: 108130.6169 | V20: 0.8559691202
A21: =selYR -> 2015 | B21: =IFERROR(VLOOKUP($A21,$A$11:$C$14,MATCH(B$20,$A$11:$C$11,0)),"") -> 431028.2216 | C21: 0.5683191942 | D21: =C21 -> 0.5683191942 | E21: =D21 -> 0.5683191942 | F21: Text to appear on charts: | S21: Confections | T21: 98333.5 | U21: 86655.96322 | V21: -0.1187544101
A22: =selYR-1 -> 2014 | B22: 274834.5 | C22: 0 | D22: =C22 -> 0 | E22: =D22 -> 0 | F22: =$F16&" ("&TEXT($G7,"$#,###")&")" -> East Coast ($156,161) | S22: Dairy Products | T22: 189416.5 | U22: 168232.5691 | V22: -0.1118378333
F23: =$F17&" ("&TEXT($G8,"$#,###")&")" -> South Coast ($108,131) | S23: Grains/Cereals | T23: 46567 | U23: 74614.71905 | V23: 0.6023089109
F24: North Coast ($88,115) | S24: Meat/Poultry | T24: 62325 | U24: 87254.90162 | V24: 0.3999984215
F25: West Coast ($78,621) | S25: Produce | T25: 75281.5 | U25: 165605.9179 | V25: 1.199822239
S26: Seafood | T26: 86857 | U26: 106663.8554 | V26: 0.2280398287
F29: YTDDates | G29: YTD | S29: P12Months | T29: Past12Months
F30: Category Name | G30: Condiments
S31: Sum of Sales
F32: Year | G32: Location | H32: Revenue | I32: YoY% | T32: 2015 | U32: 2015 | V32: 2015 | W32: 2015 | X32: 2015 | Y32: 2015 | Z32: 2016 | AA32: 2016 | AB32: 2016 | AC32: 2016 | AD32: 2016 | AE32: 2016
E33: =F33&G33&$G$30 -> 2014East CoastCondiments | F33: 2014 | G33: East Coast | H33: 58446.5 | T33: Jul | U33: Aug | V33: Sep | W33: Oct | X33: Nov | Y33: Dec | Z33: Jan | AA33: Feb | AB33: Mar | AC33: Apr | AD33: May | AE33: Jun
E34: =F34&G34&$G$30 -> 2014North CoastCondiments | F34: 2014 | G34: North Coast | H34: 90683.5 | L34: ▲ | S34: Beverages | T34: 136025.1826 | U34: 99961.26943 | V34: 101289.3451 | W34: 128384.6984 | X34: 86618.0997 | Y34: 189977.4475 | Z34: 184450.7852 | AA34: 187769.2188 | AB34: 144178.1038 | AC34: 175970.2026 | AD34: 69854.36366 | AE34: 238037.5
E35: 2014South CoastCondiments | F35: 2014 | G35: South Coast | H35: 58261 | L35: ▼ | S35: Condiments | T35: 110059.6834 | U35: 73121.90361 | V35: 60769.0002 | W35: 96161.76727 | X35: 82853.91841 | Y35: 101218.8023 | Z35: 80874.1935 | AA35: 126342.2812 | AB35: 81677.485 | AC35: 162796.8628 | AD35: 150984.4276 | AE35: 45602
E36: 2014West CoastCondiments | F36: 2014 | G36: West Coast | H36: 67443.5 | S36: Confections | T36: 113253.5435 | U36: 130185.9686 | V36: 116800.1174 | W36: 114072.0736 | X36: 113231.3379 | Y36: 149211.6425 | Z36: 83965.788 | AA36: 208339.4844 | AB36: 289126.9187 | AC36: 217949.1209 | AD36: 135582.2658 | AE36: 83879.5
E37: 2015East CoastCondiments | F37: 2015 | G37: East Coast | H37: 156161.2899 | I37: 1.671867261 | L37: =$F16&" ("&TEXT($G7,"$#,###")&")" -> East Coast ($156,161) | S37: Dairy Products | T37: 220343.2321 | U37: 119532.5701 | V37: 195504.2578 | W37: 195113.1233 | X37: 293113.4614 | Y37: 172103.4923 | Z37: 218888.9241 | AA37: 159682.1719 | AB37: 242911.105 | AC37: 262746.8908 | AD37: 190039.6154 | AE37: 147341
E38: 2015North CoastCondiments | F38: 2015 | G38: North Coast | H38: 88115.06041 | I38: -0.02832311936 | L38: =TEXT(VLOOKUP(selYR&$F16&selCateg,$E$33:$I$44,5,FALSE),"0.0%") -> 167.2% | S38: Grains/Cereals | T38: 77522.18906 | U38: 89791.59287 | V38: 93483.57129 | W38: 48038.36902 | X38: 134514.6859 | Y38: 94225.71006 | Z38: 124522.2534 | AA38: 35187.57812 | AB38: 84528.22125 | AC38: 123244.1204 | AD38: 121371.3005 | AE38: 52020.5
E39: 2015South CoastCondiments | F39: 2015 | G39: South Coast | H39: 108130.6169 | I39: 0.8559691202 | L39: =IF(VLOOKUP(selYR&$F16&selCateg,$E$33:$I$44,5,FALSE)>0,$L$34&TEXT(VLOOKUP(selYR&$F16&selCateg,$E$33:$I$44,5,FALSE),"0.0%"),$L$35&TEXT(VLOOKUP(selYR&$F16&selCateg,$E$33:$I$44,5,FALSE),"0.0%")) -> ▲167.2% | S39: Meat/Poultry | T39: 79470.75322 | U39: 80152.42676 | V39: 200920.9351 | W39: 208603.1691 | X39: 22899.56362 | Y39: 238495.0395 | Z39: 94762.386 | AA39: 102068.5469 | AB39: 133233.8662 | AC39: 296553.2429 | AD39: 29213.65929 | AE39: 164747
E40: 2015West CoastCondiments | F40: 2015 | G40: West Coast | H40: 78621.25436 | I40: 0.1657350873 | L40: =IF(VLOOKUP(selYR&$F17&selCateg,$E$33:$I$44,5,FALSE)>0,$L$34&TEXT(VLOOKUP(selYR&$F17&selCateg,$E$33:$I$44,5,FALSE),"0.0%"),$L$35&TEXT(VLOOKUP(selYR&$F17&selCateg,$E$33:$I$44,5,FALSE),"0.0%")) -> ▲85.6% | S40: Produce | T40: 26820.65039 | U40: 72677.05225 | V40: 46822.40596 | W40: 103437.1206 | X40: 70377.8016 | Y40: 211622.5617 | Z40: 14991.94406 | AA40: 10860.65625 | AB40: 63358.1125 | AC40: 137724.0423 | AD40: 40708.65509 | AE40: 43765
E41: 2016East CoastCondiments | F41: 2016 | G41: East Coast | H41: 169992.9804 | I41: 0.08857310644 | L41: =IF(VLOOKUP(selYR&$F18&selCateg,$E$33:$I$44,5,FALSE)>0,$L$34&TEXT(VLOOKUP(selYR&$F18&selCateg,$E$33:$I$44,5,FALSE),"0.0%"),$L$35&TEXT(VLOOKUP(selYR&$F18&selCateg,$E$33:$I$44,5,FALSE),"0.0%")) -> ▼-2.8% | S41: Seafood | T41: 136922.0836 | U41: 145727.6933 | V41: 153323.2784 | W41: 103883.0517 | X41: 183693.9527 | Y41: 100532.8099 | Z41: 89962.56562 | AA41: 87046.54688 | AB41: 27198.04875 | AC41: 73535.56498 | AD41: 205016.5705 | AE41: 48180
E42: 2016North CoastCondiments | F42: 2016 | G42: North Coast | H42: 211068.2824 | I42: 1.39537125 | L42: =IF(VLOOKUP(selYR&$F19&selCateg,$E$33:$I$44,5,FALSE)>0,$L$34&TEXT(VLOOKUP(selYR&$F19&selCateg,$E$33:$I$44,5,FALSE),"0.0%"),$L$35&TEXT(VLOOKUP(selYR&$F19&selCateg,$E$33:$I$44,5,FALSE),"0.0%")) -> ▲16.6%
E43: 2016South CoastCondiments | F43: 2016 | G43: South Coast | H43: 129741.4575 | I43: 0.1998586637
E44: 2016West CoastCondiments | F44: 2016 | G44: West Coast | H44: 137474.5299 | I44: 0.7485669874 | R44: Revenue and Units Sold per Product
AG46: Year | AH46: 2015
S47: Year | T47: 2015 | AG47: Location | AH47: South Coast
S48: Location | T48: South Coast | Z48: Top / Bottom 5 Products | AG48: Category Name | AH48: Condiments
S50: Product | T50: Revenue | U50: Contribution | V50: Units Sold | W50: Rank | Z50: Product | AA50: Revenue | AB50: Contribution | AC50: Units Sold | AG50: Row Labels | AH50: Revenue | AI50: Cummulative %
S51: Alice Mutton | T51: 63349.60151 | U51: 0.0263470383 | V51: 362.1075732 | W51: =RANK($T51,$T$51:$T$119,IF(selView="Top 5 Products", 0, 1)) -> 10 | Y51: 1 | Z51: =INDEX($S$51:$W$119, MATCH($Y51,$W$51:$W$119,0), MATCH(Z$50,$S$50:$W$50,0)) -> Côte de Blaye | AA51: =INDEX($S$51:$W$119,MATCH($Y51,$W$51:$W$119,0),MATCH(AA$50,$S$50:$W$50,0)) -> 183109.2554 | AB51: 0.07615496307 | AC51: 154.4574065 | AG51: Gula Malacca | AH51: 64237.45632 | AI51: 0.2855825672
S52: Boston Crab Meat | T52: 29025.79421 | U52: 0.01207179987 | V52: 377.6551015 | W52: 26 | Y52: 2 | Z52: Raclette Courdavault | AA52: 154435.2353 | AB52: 0.06422946573 | AC52: 709.7658 | AG52: Vegie-spread | AH52: 35322.36433 | AI52: 0.4426163613
S53: Camembert Pierrot | T53: 24890.08184 | U53: 0.01035176108 | V53: 162.6802734 | W53: 31 | Y53: 3 | Z53: Tarte au sucre | AA53: 152745.7854 | AB53: 0.06352682513 | AC53: 689.5972252 | AG53: Grandma's Boysenberry Spread | AH53: 28343.07861 | AI53: 0.5686221158
S54: Carnarvon Tigers | T54: 84332.07673 | U54: 0.03507362954 | V54: 283.164991 | W54: 6 | Y54: 4 | Z54: Manjimup Dried Apples | AA54: 123592.0306 | AB54: 0.05140180658 | AC54: 535.8652666 | AG54: Sirop d'érable | AH54: 27632.2522 | AI54: 0.6914677261
S55: Chai | T55: 30326.28431 | U55: 0.01261267246 | V55: 347.4951416 | W55: 24 | Y55: 5 | Z55: Rössle Sauerkraut | AA55: 112393.9703 | AB55: 0.04674454408 | AC55: 514.9362424 | AG55: Original Frankfurter grüne Soße | AH55: 21210.46696 | AI55: 0.785763795
S56: Chang | T56: 33971.99153 | U56: 0.01412891858 | V56: 457.7902075 | W56: 22 | AG56: Genen Shouyu | AH56: 16234.40649 | AI56: 0.8579376286
S57: Chartreuse verte | T57: 5339.296143 | U57: 0.002220608127 | V57: 82.77978516 | W57: 66 | AG57: Chef Anton's Cajun Seasoning | AH57: 11887.18921 | AI57: 0.9107848956
S58: Chef Anton's Cajun Seasoning | T58: 11887.18921 | U58: 0.00494387055 | V58: 120.0726182 | W58: 52 | AG58: Louisiana Fiery Hot Pepper Sauce | AH58: 9429.202386 | AI58: 0.9527046101
S59: Chef Anton's Gumbo Mix | T59: 5251.8375 | U59: 0.002184234162 | V59: 54.70664062 | W59: 67 | AG59: Louisiana Hot Spiced Okra | AH59: 5386.541355 | AI59: 0.9766517337
S60: Chocolade | T60: 11897.92502 | U60: 0.004948335566 | V60: 238.3499949 | W60: 51 | AG60: Chef Anton's Gumbo Mix | AH60: 5251.8375 | AI60: 1
S61: Côte de Blaye | T61: 183109.2554 | U61: 0.07615496307 | V61: 154.4574065 | W61: 1
S62: Escargots de Bourgogne | T62: 10536.06709 | U62: 0.004381940162 | V62: 177.0767578 | W62: 55
S63: Filo Mix | T63: 5422.569457 | U63: 0.002255241418 | V63: 172.1450621 | W63: 64
S64: Fløtemysost | T64: 60921.60653 | U64: 0.02533723752 | V64: 702.5952261 | W64: 11
S65: Geitost | T65: 3343.58912 | U65: 0.001390595497 | V65: 303.9626472 | W65: 68
S66: Genen Shouyu | T66: 16234.40649 | U66: 0.006751874035 | V66: 233.5885826 | W66: 43
S67: Gnocchi di nonna Alice | T67: 76604.7578 | U67: 0.03185984504 | V67: 493.0274026 | W67: 8
S68: Gorgonzola Telino | T68: 27974.37925 | U68: 0.01163451741 | V68: 499.5424866 | W68: 28
S69: Grandma's Boysenberry Spread | T69: 28343.07861 | U69: 0.01178785912 | V69: 251.9384766 | W69: 27
S70: Gravad lax | T70: 8816.138222 | U70: 0.003666623401 | V70: 81.01734055 | W70: 58
S71: Guaraná Fantástica | T71: 5780.458411 | U71: 0.00240408709 | V71: 320.5917114 | W71: 62
S72: Gula Malacca | T72: 64237.45632 | U72: 0.02671629626 | V72: 751.1658151 | W72: 9
S73: Gumbär Gummibärchen | T73: 36526.94011 | U73: 0.01519151924 | V73: 300.0317322 | W73: 19
S74: Gustaf's Knäckebröd | T74: 13604.67773 | U74: 0.005658172376 | V74: 143.9648438 | W74: 47
S75: Ikura | T75: 14811.01315 | U75: 0.006159886113 | V75: 116.7914795 | W75: 46
S76: Inlagd Sill | T76: 50500.53338 | U76: 0.02100312323 | V76: 590.6495132 | W76: 13
S77: Ipoh Coffee | T77: 22350.54199 | U77: 0.009295568903 | V77: 107.9736328 | W77: 33
S78: Jack's New England Clam Chowder | T78: 23788.41179 | U78: 0.009893577568 | V78: 553.2188788 | W78: 32
S79: Konbu | T79: 7256.425354 | U79: 0.003017940321 | V79: 268.7564946 | W79: 61
S80: Lakkalikööri | T80: 37771.47457 | U80: 0.01570911992 | V80: 466.3145009 | W80: 17
S81: Laughing Lumberjack Lager | T81: 12069.90003 | U81: 0.005019859805 | V81: 171.4081421 | W81: 49
S82: Longlife Tofu | T82: 2384.057812 | U82: 0.0009915273497 | V82: 66.22382812 | W82: 69
S83: Louisiana Fiery Hot Pepper Sauce | T83: 9429.202386 | U83: 0.003921596197 | V83: 111.1228638 | W83: =RANK($T83,$T$51:$T$119,IF(selView="Top 5 Products", 0, 1)) -> 56
S84: Louisiana Hot Spiced Okra | T84: 5386.541355 | U84: 0.002240257365 | V84: 70.4123053 | W84: 65
S85: Manjimup Dried Apples | T85: 123592.0306 | U85: 0.05140180658 | V85: 535.8652666 | W85: 4
S86: Mascarpone Fabioli | T86: 11953.32899 | U86: 0.004971378024 | V86: 83.00922913 | W86: 50
S87: Maxilaku | T87: 5768.383359 | U87: 0.002399065087 | V87: 80.11643555 | W87: 63
S88: Mishi Kobe Niku | T88: 8247.835876 | U88: 0.003430267003 | V88: 18.89538574 | W88: 59
S89: Mozzarella di Giovanni | T89: 11001.58587 | U89: 0.004575548975 | V89: 70.29767329 | W89: 53
S90: Nord-Ost Matjeshering | T90: 20995.14574 | U90: 0.008731860907 | V90: 177.006215 | W90: 36
S91: NuNuCa Nuß-Nougat-Creme | T91: 7981.410937 | U91: 0.003319461127 | V91: 126.6890625 | W91: 60
S92: Original Frankfurter grüne Soße | T92: 21210.46696 | U92: 0.008821412795 | V92: 363.0066787 | W92: 35
S93: Outback Lager | T93: 21584.61078 | U93: 0.00897701885 | V93: 314.8691089 | W93: 34
S94: Pâté chinois | T94: 37656.18505 | U94: 0.01566117112 | V94: 394.8571008 | W94: 18
S95: Pavlova | T95: 20352.97431 | U95: 0.008464782428 | V95: 274.6787134 | W95: 40
S96: Perth Pasties | T96: 42130.23685 | U96: 0.01752192496 | V96: 271.3699064 | W96: 15
S97: Queso Cabrales | T97: 31028.48881 | U97: 0.01290471863 | V97: 349.8791094 | W97: 23
S98: Queso Manchego La Pastora | T98: 29781.84212 | U98: 0.01238623947 | V98: 174.1628194 | W98: 25
S99: Raclette Courdavault | T99: 154435.2353 | U99: 0.06422946573 | V99: 709.7658 | W99: 2
S100: Ravioli Angelo | T100: 20808.30736 | U100: 0.008654155002 | V100: 249.0924716 | W100: 38
S101: Rhönbräu Klosterbier | T101: 26418.31364 | U101: 0.01098735122 | V101: 783.8210907 | W101: 30
S102: Röd Kaviar | T102: 20504.19287 | U102: 0.008527674081 | V102: 320.3217773 | W102: 39
S103: Røgede sild | T103: 36383.86718 | U103: 0.01513201534 | V103: 880.9249279 | W103: 20
S104: Rössle Sauerkraut | T104: 112393.9703 | U104: 0.04674454408 | V104: 514.9362424 | W104: 5
S105: Sasquatch Ale | T105: 15363.72005 | U105: 0.006389756382 | V105: 243.8685722 | W105: 44
S106: Scottish Longbreads | T106: 10702.24571 | U106: 0.00445105369 | V106: 187.076016 | W106: 54
S107: Sir Rodney's Scones | T107: 43487.54471 | U107: 0.01808642799 | V107: 994.5979939 | W107: 14
S108: Sirop d'érable | T108: 27632.2522 | U108: 0.01149222709 | V108: 243.8404541 | W108: 29
S109: Spegesild | T109: 12079.36662 | U109: 0.00502379695 | V109: 246.7863347 | W109: 48
S110: Steeleye Stout | T110: 17011.61701 | U110: 0.007075115141 | V110: 210.0199631 | W110: 42
S111: Tarte au sucre | T111: 152745.7854 | U111: 0.06352682513 | V111: 689.5972252 | W111: 3
S112: Teatime Chocolate Biscuits | T112: 14901.26111 | U112: 0.006197420153 | V112: 416.0943896 | W112: 45
S113: Thüringer Rostbratwurst | T113: 80188.41797 | U113: 0.03335028586 | V113: 143.9648438 | W113: 7
S114: Tofu | T114: 40924.67401 | U114: 0.01702053253 | V114: 421.5583054 | W114: 16
S115: Tourtière | T115: 18165.54719 | U115: 0.007555033594 | V115: 617.4305733 | W115: 41
S116: Tunnbröd | T116: 9075.428466 | U116: 0.003774461964 | V116: 224.0846535 | W116: 57
S117: Uncle Bob's Organic Dried Pears | T117: 60224.99304 | U117: 0.02504751664 | V117: 446.1110596 | W117: 12
S118: Valkoinen suklaa | T118: 20869.7646 | U118: 0.00867971501 | V118: 285.8871863 | W118: 37
S119: Vegie-spread | T119: 35322.36433 | U119: 0.01469053733 | V119: 216.0964042 | W119: 21
S120: Wimmers gute Semmelknödel | T120: 31871.32761 | U120: 0.01325525448 | V120: 266.7056704
S121: Zaanse koeken | T121: 22159.42135 | U121: 0.009216082013 | V121: 546.232085

Sheet Data
A3: Location | B3: Sales Agents | C3: Category Name | D3: Product Name | E3: Date | F3: Quantity | G3: Unit Price | H3: Year | I3: Month | J3: MonthName | K3: YTDDates | L3: P12Months | M3: Weekday | N3: Sales
A4: West Coast | B4: Oddesy. Y | C4: Dairy Products | D4: Fløtemysost | E4: 41640 | F4: 87 | G4: 177 | H4: =YEAR(E4) -> 2014 | I4: =MONTH(E4) -> 1 | J4: =TEXT(E4,"mmm") -> Jan | K4: =IF(I4<MONTH(TODAY()),"YTD","Not YTD") -> YTD | L4: =IF(AND(E4>=EarliestDate,E4<=MostRecentDate),"Past12Months","NotPTM") -> NotPTM | M4: =TEXT(E4,"ddd") -> Wed | N4: =F4*G4 -> 15399
A5: East Coast | B5: Johnson. A | C5: Grains/Cereals | D5: Gnocchi di nonna Alice | E5: 41640 | F5: 52 | G5: 62.5 | H5: 2014 | I5: 1 | J5: Jan | K5: YTD | L5: NotPTM | M5: Wed | N5: 3250
A6: South Coast | B6: Grooner. T | C6: Condiments | D6: Louisiana Fiery Hot Pepper Sauce | E6: 41640 | F6: 75 | G6: 112 | H6: 2014 | I6: 1 | J6: Jan | K6: YTD | L6: NotPTM | M6: Wed | N6: 8400
A7: East Coast | B7: Anderson. P | C7: Confections | D7: Maxilaku | E7: 41640 | F7: 150 | G7: 32 | H7: 2014 | I7: 1 | J7: Jan | K7: YTD | L7: NotPTM | M7: Wed | N7: 4800
A8: South Coast | B8: Franly. S | C8: Seafood | D8: Nord-Ost Matjeshering | E8: 41640 | F8: 162 | G8: 157.5 | H8: 2014 | I8: 1 | J8: Jan | K8: YTD | L8: NotPTM | M8: Wed | N8: 25515
A9: North Coast | B9: Naidoo. L | C9: Beverages | D9: Steeleye Stout | E9: 41640 | F9: 125 | G9: 36 | H9: 2014 | I9: 1 | J9: Jan | K9: YTD | L9: NotPTM | M9: Wed | N9: 4500
A10: West Coast | B10: Numkin. M | C10: Meat/Poultry | D10: Thüringer Rostbratwurst | E10: 41640 | F10: 75 | G10: 36 | H10: 2014 | I10: 1 | J10: Jan | K10: YTD | L10: NotPTM | M10: Wed | N10: 2700
A11: East Coast | B11: Peters. K | C11: Grains/Cereals | D11: Tunnbröd | E11: 41641 | F11: 100 | G11: 50 | H11: 2014 | I11: 1 | J11: Jan | K11: YTD | L11: NotPTM | M11: Thu | N11: 5000
A12: South Coast | B12: Hannis. H | C12: Condiments | D12: Vegie-spread | E12: 41641 | F12: 175 | G12: 45.5 | H12: 2014 | I12: 1 | J12: Jan | K12: YTD | L12: NotPTM | M12: Thu | N12: 7962.5
A13: South Coast | B13: Jarison. P | C13: Confections | D13: Chocolade | E13: 41642 | F13: 25 | G13: 93.5 | H13: 2014 | I13: 1 | J13: Jan | K13: YTD | L13: NotPTM | M13: Fri | N13: 2337.5
A14: South Coast | B14: Ilknis. K | C14: Confections | D14: Gumbär Gummibärchen | E14: 41642 | F14: 37 | G14: 77 | H14: 2014 | I14: 1 | J14: Jan | K14: YTD | L14: NotPTM | M14: Fri | N14: 2849
A15: North Coast | B15: Petty. A | C15: Confections | D15: Maxilaku | E15: 41642 | F15: 105 | G15: 163.5 | H15: 2014 | I15: 1 | J15: Jan | K15: YTD | L15: NotPTM | M15: Fri | N15: 17167.5
A16: East Coast | B16: Bonders. P | C16: Confections | D16: Pavlova | E16: 41642 | F16: 5 | G16: 66 | H16: 2014 | I16: 1 | J16: Jan | K16: YTD | L16: NotPTM | M16: Fri | N16: 330
A17: East Coast | B17: Newson. L | C17: Grains/Cereals | D17: Singaporean Hokkien Fried Mee | E17: 41642 | F17: 12 | G17: 68 | H17: 2014 | I17: 1 | J17: Jan | K17: YTD | L17: NotPTM | M17: Fri | N17: 816
A18: North Coast | B18: Oxford. D | C18: Condiments | D18: Aniseed Syrup | E18: 41645 | F18: 15 | G18: 26.5 | H18: 2014 | I18: 1 | J18: Jan | K18: YTD | L18: NotPTM | M18: Mon | N18: 397.5
A19: East Coast | B19: Lavin. T | C19: Seafood | D19: Boston Crab Meat | E19: 41646 | F19: 25 | G19: 64.5 | H19: 2014 | I19: 1 | J19: Jan | K19: YTD | L19: NotPTM | M19: Tue | N19: 1612.5
A20: East Coast | B20: Anderson. P | C20: Beverages | D20: Chai | E20: 41646 | F20: 75 | G20: 75.5 | H20: 2014 | I20: 1 | J20: Jan | K20: YTD | L20: NotPTM | M20: Tue | N20: 5662.5
A21: South Coast | B21: Kinsly. N | C21: Dairy Products | D21: Fløtemysost | E21: 41646 | F21: 100 | G21: 69.5 | H21: 2014 | I21: 1 | J21: Jan | K21: YTD | L21: NotPTM | M21: Tue | N21: 6950
A22: East Coast | B22: Johnson. A | C22: Dairy Products | D22: Gudbrandsdalsost | E22: 41646 | F22: 60 | G22: 64.5 | H22: 2014 | I22: 1 | J22: Jan | K22: YTD | L22: NotPTM | M22: Tue | N22: 3870
A23: East Coast | B23: Perks. M | C23: Seafood | D23: Inlagd Sill | E23: 41646 | F23: 37 | G23: 129.5 | H23: 2014 | I23: 1 | J23: Jan | K23: YTD | L23: NotPTM | M23: Tue | N23: 4791.5
A24: East Coast | B24: Peters. K | C24: Dairy Products | D24: Queso Cabrales | E24: 41646 | F24: 50 | G24: 32.5 | H24: 2014 | I24: 1 | J24: Jan | K24: YTD | L24: NotPTM | M24: Tue | N24: 1625
A25: North Coast | B25: Altercon. C | C25: Produce | D25: Rössle Sauerkraut | E25: 41646 | F25: 30 | G25: 36 | H25: 2014 | I25: 1 | J25: Jan | K25: YTD | L25: NotPTM | M25: Tue | N25: 1080
A26: West Coast | B26: Pursly. U | C26: Confections | D26: Sir Rodney's Scones | E26: 41646 | F26: 30 | G26: 83.5 | H26: 2014 | I26: 1 | J26: Jan | K26: YTD | L26: NotPTM | M26: Tue | N26: 2505
A27: South Coast | B27: Lumford. T | C27: Seafood | D27: Gravad lax | E27: 41647 | F27: 5 | G27: 140 | H27: 2014 | I27: 1 | J27: Jan | K27: YTD | L27: NotPTM | M27: Wed | N27: 700
A28: West Coast | B28: Rooney. Y | C28: Confections | D28: Tarte au sucre | E28: 41647 | F28: 62 | G28: 34.5 | H28: 2014 | I28: 1 | J28: Jan | K28: YTD | L28: NotPTM | M28: Wed | N28: 2139
A29: North Coast | B29: Atterson. P | C29: Meat/Poultry | D29: Tourtière | E29: 41647 | F29: 62 | G29: 198 | H29: 2014 | I29: 1 | J29: Jan | K29: YTD | L29: NotPTM | M29: Wed | N29: 12276
A30: North Coast | B30: Connely. K | C30: Confections | D30: Sir Rodney's Scones | E30: 41648 | F30: 122 | G30: 9 | H30: 2014 | I30: 1 | J30: Jan | K30: YTD | L30: NotPTM | M30: Thu | N30: 1098
A31: West Coast | B31: Stanly. N | C31: Produce | D31: Tofu | E31: 41648 | F31: 35 | G31: 64.5 | H31: 2014 | I31: 1 | J31: Jan | K31: YTD | L31: NotPTM | M31: Thu | N31: 2257.5
A32: North Coast | B32: Edford. O | C32: Dairy Products | D32: Geitost | E32: 41649 | F32: 45 | G32: 32.5 | H32: 2014 | I32: 1 | J32: Jan | K32: YTD | L32: NotPTM | M32: Fri | N32: 1462.5
A33: South Coast | B33: Moodley. L | C33: Condiments | D33: Gula Malacca | E33: 41649 | F33: 50 | G33: 70 | H33: 2014 | I33: 1 | J33: Jan | K33: YTD | L33: NotPTM | M33: Fri | N33: 3500
A34: West Coast | B34: Toonly. S | C34: Seafood | D34: Jack's New England Clam Chowder | E34: 41649 | F34: 125 | G34: 9 | H34: 2014 | I34: 1 | J34: Jan | K34: YTD | L34: NotPTM | M34: Fri | N34: 1125
A35: North Coast | B35: Dinnel. M | C35: Dairy Products | D35: Raclette Courdavault | E35: 41649 | F35: 50 | G35: 83.5 | H35: 2014 | I35: 1 | J35: Jan | K35: YTD | L35: NotPTM | M35: Fri | N35: 4175
A36: North Coast | B36: Oxford. D | C36: Produce | D36: Tofu | E36: 41652 | F36: 100 | G36: 177 | H36: 2014 | I36: 1 | J36: Jan | K36: YTD | L36: NotPTM | M36: Mon | N36: 17700
A37: East Coast | B37: Bonders. P | C37: Beverages | D37: Chai | E37: 41653 | F37: 87 | G37: 46.5 | H37: 2014 | I37: 1 | J37: Jan | K37: YTD | L37: NotPTM | M37: Tue | N37: 4045.5
A38: West Coast | B38: Oddesy. Y | C38: Dairy Products | D38: Geitost | E38: 41653 | F38: 90 | G38: 45 | H38: 2014 | I38: 1 | J38: Jan | K38: YTD | L38: NotPTM | M38: Tue | N38: 4050
A39: West Coast | B39: Numkin. M | C39: Beverages | D39: Lakkalikööri | E39: 41653 | F39: 50 | G39: 9 | H39: 2014 | I39: 1 | J39: Jan | K39: YTD | L39: NotPTM | M39: Tue | N39: 450
A40: North Coast | B40: Atterson. P | C40: Confections | D40: Tarte au sucre | E40: 41653 | F40: 25 | G40: 117.5 | H40: 2014 | I40: 1 | J40: Jan | K40: YTD | L40: NotPTM | M40: Tue | N40: 2937.5
A41: North Coast | B41: Altercon. C | C41: Confections | D41: Teatime Chocolate Biscuits | E41: 41653 | F41: 5 | G41: 43 | H41: 2014 | I41: 1 | J41: Jan | K41: YTD | L41: NotPTM | M41: Tue | N41: 215
A42: South Coast | B42: Franly. S | C42: Meat/Poultry | D42: Alice Mutton | E42: 41654 | F42: 40 | G42: 102.5 | H42: 2014 | I42: 1 | J42: Jan | K42: YTD | L42: NotPTM | M42: Wed | N42: 4100
A43: West Coast | B43: Pursly. U | C43: Dairy Products | D43: Geitost | E43: 41654 | F43: 5 | G43: 21.5 | H43: 2014 | I43: 1 | J43: Jan | K43: YTD | L43: NotPTM | M43: Wed | N43: 107.5
A44: East Coast | B44: Perks. M | C44: Beverages | D44: Côte de Blaye | E44: 41655 | F44: 50 | G44: 54 | H44: 2014 | I44: 1 | J44: Jan | K44: YTD | L44: NotPTM | M44: Thu | N44: 2700
A45: East Coast | B45: Lavin. T | C45: Condiments | D45: Original Frankfurter grüne Soße | E45: 41655 | F45: 10 | G45: 32.5 | H45: 2014 | I45: 1 | J45: Jan | K45: YTD | L45: NotPTM | M45: Thu | N45: 325
A46: North Coast | B46: Dinnel. M | C46: Meat/Poultry | D46: Perth Pasties | E46: 41655 | F46: 137 | G46: 34 | H46: 2014 | I46: 1 | J46: Jan | K46: YTD | L46: NotPTM | M46: Thu | N46: 4658
A47: South Coast | B47: Grooner. T | C47: Grains/Cereals | D47: Ravioli Angelo | E47: 41655 | F47: 150 | G47: 68 | H47: 2014 | I47: 1 | J47: Jan | K47: YTD | L47: NotPTM | M47: Thu | N47: 10200
A48: West Coast | B48: Rooney. Y | C48: Confections | D48: Scottish Longbreads | E48: 41655 | F48: 25 | G48: 46.5 | H48: 2014 | I48: 1 | J48: Jan | K48: YTD | L48: NotPTM | M48: Thu | N48: 1162.5
A49: North Coast | B49: Connely. K | C49: Seafood | D49: Spegesild | E49: 41655 | F49: 37 | G49: 36 | H49: 2014 | I49: 1 | J49: Jan | K49: YTD | L49: NotPTM | M49: Thu | N49: 1332
A50: East Coast | B50: Newson. L | C50: Confections | D50: Teatime Chocolate Biscuits | E50: 41655 | F50: 125 | G50: 948.5 | H50: 2014 | I50: 1 | J50: Jan | K50: YTD | L50: NotPTM | M50: Thu | N50: 118562.5
A51: South Coast | B51: Ilknis. K | C51: Beverages | D51: Chang | E51: 41656 | F51: 75 | G51: 112 | H51: 2014 | I51: 1 | J51: Jan | K51: YTD | L51: NotPTM | M51: Fri | N51: 8400
A52: North Coast | B52: Edford. O | C52: Produce | D52: Longlife Tofu | E52: 41656 | F52: 50 | G52: 129.5 | H52: 2014 | I52: 1 | J52: Jan | K52: YTD | L52: NotPTM | M52: Fri | N52: 6475
A53: South Coast | B53: Hannis. H | C53: Condiments | D53: Sirop d'érable | E53: 41656 | F53: 20 | G53: 54 | H53: 2014 | I53: 1 | J53: Jan | K53: YTD | L53: NotPTM | M53: Fri | N53: 1080
A54: North Coast | B54: Oxford. D | C54: Confections | D54: Zaanse koeken | E54: 41656 | F54: 150 | G54: 122 | H54: 2014 | I54: 1 | J54: Jan | K54: YTD | L54: NotPTM | M54: Fri | N54: 18300
A55: North Coast | B55: Atterson. P | C55: Dairy Products | D55: Camembert Pierrot | E55: 41659 | F55: 50 | G55: 64.5 | H55: 2014 | I55: 1 | J55: Jan | K55: YTD | L55: NotPTM | M55: Mon | N55: 3225
A56: North Coast | B56: Altercon. C | C56: Dairy Products | D56: Gudbrandsdalsost | E56: 41659 | F56: 75 | G56: 45 | H56: 2014 | I56: 1 | J56: Jan | K56: YTD | L56: NotPTM | M56: Mon | N56: 3375
A57: South Coast | B57: Kinsly. N | C57: Confections | D57: Gumbär Gummibärchen | E57: 41660 | F57: 12 | G57: 136.5 | H57: 2014 | I57: 1 | J57: Jan | K57: YTD | L57: NotPTM | M57: Tue | N57: 1638
A58: West Coast | B58: Stanly. N | C58: Seafood | D58: Konbu | E58: 41660 | F58: 37 | G58: 117.5 | H58: 2014 | I58: 1 | J58: Jan | K58: YTD | L58: NotPTM | M58: Tue | N58: 4347.5
A59: West Coast | B59: Oddesy. Y | C59: Meat/Poultry | D59: Mishi Kobe Niku | E59: 41660 | F59: 150 | G59: 64.5 | H59: 2014 | I59: 1 | J59: Jan | K59: YTD | L59: NotPTM | M59: Tue | N59: 9675
A60: West Coast | B60: Toonly. S | C60: Condiments | D60: Original Frankfurter grüne Soße | E60: 41660 | F60: 50 | G60: 349 | H60: 2014 | I60: 1 | J60: Jan | K60: YTD | L60: NotPTM | M60: Tue | N60: 17450
A61: South Coast | B61: Jarison. P | C61: Beverages | D61: Outback Lager | E61: 41660 | F61: 50 | G61: 198 | H61: 2014 | I61: 1 | J61: Jan | K61: YTD | L61: NotPTM | M61: Tue | N61: 9900
A62: West Coast | B62: Numkin. M | C62: Meat/Poultry | D62: Perth Pasties | E62: 41660 | F62: 122 | G62: 948.5 | H62: 2014 | I62: 1 | J62: Jan | K62: YTD | L62: NotPTM | M62: Tue | N62: 115717
A63: East Coast | B63: Johnson. A | C63: Seafood | D63: Röd Kaviar | E63: 41660 | F63: 35 | G63: 45 | H63: 2014 | I63: 1 | J63: Jan | K63: YTD | L63: NotPTM | M63: Tue | N63: 1575
A64: East Coast | B64: Anderson. P | C64: Confections | D64: Teatime Chocolate Biscuits | E64: 41660 | F64: 5 | G64: 112 | H64: 2014 | I64: 1 | J64: Jan | K64: YTD | L64: NotPTM | M64: Tue | N64: 560
A65: East Coast | B65: Peters. K | C65: Confections | D65: Gumbär Gummibärchen | E65: 41661 | F65: 25 | G65: 86 | H65: 2014 | I65: 1 | J65: Jan | K65: YTD | L65: NotPTM | M65: Wed | N65: 2150
A66: West Coast | B66: Pursly. U | C66: Beverages | D66: Côte de Blaye | E66: 41662 | F66: 50 | G66: 43 | H66: 2014 | I66: 1 | J66: Jan | K66: YTD | L66: NotPTM | M66: Thu | N66: 2150
A67: East Coast | B67: Bonders. P | C67: Dairy Products | D67: Gorgonzola Telino | E67: 41662 | F67: 75 | G67: 136.5 | H67: 2014 | I67: 1 | J67: Jan | K67: YTD | L67: NotPTM | M67: Thu | N67: 10237.5
A68: South Coast | B68: Lumford. T | C68: Dairy Products | D68: Raclette Courdavault | E68: 41662 | F68: 17 | G68: 119.5 | H68: =YEAR(E68) -> 2014 | I68: =MONTH(E68) -> 1 | J68: =TEXT(E68,"mmm") -> Jan | K68: =IF(I68<MONTH(TODAY()),"YTD","Not YTD") -> YTD | L68: =IF(AND(E68>=EarliestDate,E68<=MostRecentDate),"Past12Months","NotPTM") -> NotPTM | M68: =TEXT(E68,"ddd") -> Thu | N68: =F68*G68 -> 2031.5
A69: North Coast | B69: Connely. K | C69: Confections | D69: Scottish Longbreads | E69: 41662 | F69: 87 | G69: 157.5 | H69: 2014 | I69: 1 | J69: Jan | K69: YTD | L69: NotPTM | M69: Thu | N69: 13702.5
A70: West Coast | B70: Rooney. Y | C70: Beverages | D70: Steeleye Stout | E70: 41662 | F70: 100 | G70: 58.5 | H70: 2014 | I70: 1 | J70: Jan | K70: YTD | L70: NotPTM | M70: Thu | N70: 5850
A71: North Coast | B71: Dinnel. M | C71: Beverages | D71: Lakkalikööri | E71: 41663 | F71: 125 | G71: 66 | H71: 2014 | I71: 1 | J71: Jan | K71: YTD | L71: NotPTM | M71: Fri | N71: 8250
A72: East Coast | B72: Newson. L | C72: Meat/Poultry | D72: Pâté chinois | E72: 41663 | F72: 100 | G72: 26.5 | H72: 2014 | I72: 1 | J72: Jan | K72: YTD | L72: NotPTM | M72: Fri | N72: 2650
A73: South Coast | B73: Moodley. L | C73: Grains/Cereals | D73: Gnocchi di nonna Alice | E73: 41666 | F73: 87 | G73: 83.5 | H73: 2014 | I73: 1 | J73: Jan | K73: YTD | L73: NotPTM | M73: Mon | N73: 7264.5
A74: South Coast | B74: Grooner. T | C74: Produce | D74: Tofu | E74: 41666 | F74: 25 | G74: 112 | H74: 2014 | I74: 1 | J74: Jan | K74: YTD | L74: NotPTM | M74: Mon | N74: 2800
A75: South Coast | B75: Franly. S | C75: Grains/Cereals | D75: Wimmers gute Semmelknödel | E75: 41666 | F75: 125 | G75: 36 | H75: 2014 | I75: 1 | J75: Jan | K75: YTD | L75: NotPTM | M75: Mon | N75: 4500
A76: West Coast | B76: Stanly. N | C76: Seafood | D76: Spegesild | E76: 41667 | F76: 75 | G76: 34 | H76: 2014 | I76: 1 | J76: Jan | K76: YTD | L76: NotPTM | M76: Tue | N76: 2550
A77: West Coast | B77: Toonly. S | C77: Confections | D77: Valkoinen suklaa | E77: 41668 | F77: 237 | G77: 140 | H77: 2014 | I77: 1 | J77: Jan | K77: YTD | L77: NotPTM | M77: Wed | N77: 33180
A78: North Coast | B78: Edford. O | C78: Condiments | D78: Vegie-spread | E78: 41668 | F78: 175 | G78: 198 | H78: 2014 | I78: 1 | J78: Jan | K78: YTD | L78: NotPTM | M78: Wed | N78: 34650
A79: West Coast | B79: Oddesy. Y | C79: Meat/Poultry | D79: Alice Mutton | E79: 41669 | F79: 45 | G79: 64.5 | H79: 2014 | I79: 1 | J79: Jan | K79: YTD | L79: NotPTM | M79: Thu | N79: 2902.5
A80: North Coast | B80: Oxford. D | C80: Seafood | D80: Boston Crab Meat | E80: 41669 | F80: 70 | G80: 136.5 | H80: 2014 | I80: 1 | J80: Jan | K80: YTD | L80: NotPTM | M80: Thu | N80: 9555
A81: East Coast | B81: Lavin. T | C81: Grains/Cereals | D81: Gnocchi di nonna Alice | E81: 41669 | F81: 30 | G81: 75.5 | H81: 2014 | I81: 1 | J81: Jan | K81: YTD | L81: NotPTM | M81: Thu | N81: 2265
A82: North Coast | B82: Altercon. C | C82: Dairy Products | D82: Raclette Courdavault | E82: 41669 | F82: 25 | G82: 68 | H82: 2014 | I82: 1 | J82: Jan | K82: YTD | L82: NotPTM | M82: Thu | N82: 1700
A83: South Coast | B83: Hannis. H | C83: Confections | D83: Sir Rodney's Scones | E83: 41669 | F83: 60 | G83: 27.5 | H83: 2014 | I83: 1 | J83: Jan | K83: YTD | L83: NotPTM | M83: Thu | N83: 1650
A84: West Coast | B84: Numkin. M | C84: Confections | D84: Zaanse koeken | E84: 41669 | F84: 15 | G84: 75.5 | H84: 2014 | I84: 1 | J84: Jan | K84: YTD | L84: NotPTM | M84: Thu | N84: 1132.5
A85: South Coast | B85: Ilknis. K | C85: Confections | D85: Gumbär Gummibärchen | E85: 41670 | F85: 75 | G85: 119.5 | H85: 2014 | I85: 1 | J85: Jan | K85: YTD | L85: NotPTM | M85: Fri | N85: 8962.5
A86: East Coast | B86: Perks. M | C86: Meat/Poultry | D86: Tourtière | E86: 41670 | F86: 37 | G86: 117.5 | H86: 2014 | I86: 1 | J86: Jan | K86: YTD | L86: NotPTM | M86: Fri | N86: 4347.5
A87: North Coast | B87: Atterson. P | C87: Grains/Cereals | D87: Gnocchi di nonna Alice | E87: 41673 | F87: 12 | G87: 43 | H87: 2014 | I87: 2 | J87: Feb | K87: YTD | L87: NotPTM | M87: Mon | N87: 516
A88: West Coast | B88: Rooney. Y | C88: Beverages | D88: Lakkalikööri | E88: 41673 | F88: 37 | G88: 136.5 | H88: 2014 | I88: 2 | J88: Feb | K88: YTD | L88: NotPTM | M88: Mon | N88: 5050.5
A89: West Coast | B89: Pursly. U | C89: Dairy Products | D89: Queso Cabrales | E89: 41673 | F89: 25 | G89: 125 | H89: 2014 | I89: 2 | J89: Feb | K89: YTD | L89: NotPTM | M89: Mon | N89: 3125
A90: North Coast | B90: Connely. K | C90: Beverages | D90: Chang | E90: 41674 | F90: 37 | G90: 70 | H90: 2014 | I90: 2 | J90: Feb | K90: YTD | L90: NotPTM | M90: Tue | N90: 2590
A91: East Coast | B91: Anderson. P | C91: Grains/Cereals | D91: Gustaf's Knäckebröd | E91: 41674 | F91: 50 | G91: 50 | H91: 2014 | I91: 2 | J91: Feb | K91: YTD | L91: NotPTM | M91: Tue | N91: 2500
A92: West Coast | B92: Stanly. N | C92: Dairy Products | D92: Mozzarella di Giovanni | E92: 41674 | F92: 125 | G92: 157.5 | H92: 2014 | I92: 2 | J92: Feb | K92: YTD | L92: NotPTM | M92: Tue | N92: 19687.5
A93: South Coast | B93: Lumford. T | C93: Grains/Cereals | D93: Gnocchi di nonna Alice | E93: 41675 | F93: 200 | G93: 26.5 | H93: 2014 | I93: 2 | J93: Feb | K93: YTD | L93: NotPTM | M93: Wed | N93: 5300
A94: East Coast | B94: Johnson. A | C94: Meat/Poultry | D94: Perth Pasties | E94: 41675 | F94: 15 | G94: 119.5 | H94: 2014 | I94: 2 | J94: Feb | K94: YTD | L94: NotPTM | M94: Wed | N94: 1792.5
A95: South Coast | B95: Jarison. P | C95: Beverages | D95: Rhönbräu Klosterbier | E95: 41675 | F95: 100 | G95: 136.5 | H95: 2014 | I95: 2 | J95: Feb | K95: YTD | L95: NotPTM | M95: Wed | N95: 13650
A96: North Coast | B96: Dinnel. M | C96: Seafood | D96: Spegesild | E96: 41675 | F96: 40 | G96: 62.5 | H96: 2014 | I96: 2 | J96: Feb | K96: YTD | L96: NotPTM | M96: Wed | N96: 2500
A97: South Coast | B97: Kinsly. N | C97: Grains/Cereals | D97: Wimmers gute Semmelknödel | E97: 41675 | F97: 37 | G97: 32.5 | H97: 2014 | I97: 2 | J97: Feb | K97: YTD | L97: NotPTM | M97: Wed | N97: 1202.5
A98: North Coast | B98: Edford. O | C98: Grains/Cereals | D98: Ravioli Angelo | E98: 41676 | F98: 75 | G98: 36 | H98: 2014 | I98: 2 | J98: Feb | K98: YTD | L98: NotPTM | M98: Thu | N98: 2700
A99: East Coast | B99: Peters. K | C99: Beverages | D99: Sasquatch Ale | E99: 41676 | F99: 112 | G99: 68 | H99: 2014 | I99: 2 | J99: Feb | K99: YTD | L99: NotPTM | M99: Thu | N99: 7616
A100: South Coast | B100: Moodley. L | C100: Confections | D100: Teatime Chocolate Biscuits | E100: 41676 | F100: 15 | G100: 75.5 | H100: 2014 | I100: 2 | J100: Feb | K100: YTD | L100: NotPTM | M100: Thu | N100: 1132.5
A101: North Coast | B101: Altercon. C | C101: Produce | D101: Longlife Tofu | E101: 41677 | F101: 20 | G101: 64.5 | H101: 2014 | I101: 2 | J101: Feb | K101: YTD | L101: NotPTM | M101: Fri | N101: 1290
A102: North Coast | B102: Oxford. D | C102: Confections | D102: Pavlova | E102: 41677 | F102: 60 | G102: 445.5 | H102: 2014 | I102: 2 | J102: Feb | K102: YTD | L102: NotPTM | M102: Fri | N102: 26730
A103: West Coast | B103: Toonly. S | C103: Dairy Products | D103: Queso Manchego La Pastora | E103: 41677 | F103: 75 | G103: 75.5 | H103: 2014 | I103: 2 | J103: Feb | K103: YTD | L103: NotPTM | M103: Fri | N103: 5662.5
A104: East Coast | B104: Bonders. P | C104: Grains/Cereals | D104: Wimmers gute Semmelknödel | E104: 41677 | F104: 122 | G104: 62.5 | H104: 2014 | I104: 2 | J104: Feb | K104: YTD | L104: NotPTM | M104: Fri | N104: 7625
A105: East Coast | B105: Newson. L | C105: Beverages | D105: Chang | E105: 41680 | F105: 225 | G105: 102.5 | H105: 2014 | I105: 2 | J105: Feb | K105: YTD | L105: NotPTM | M105: Mon | N105: 23062.5
A106: East Coast | B106: Lavin. T | C106: Confections | D106: Pavlova | E106: 41680 | F106: 150 | G106: 61 | H106: 2014 | I106: 2 | J106: Feb | K106: YTD | L106: NotPTM | M106: Mon | N106: 9150
A107: West Coast | B107: Numkin. M | C107: Confections | D107: Schoggi Schokolade | E107: 41680 | F107: 7 | G107: 45 | H107: 2014 | I107: 2 | J107: Feb | K107: YTD | L107: NotPTM | M107: Mon | N107: 315
A108: East Coast | B108: Perks. M | C108: Condiments | D108: Sirop d'érable | E108: 41680 | F108: 25 | G108: 140 | H108: 2014 | I108: 2 | J108: Feb | K108: YTD | L108: NotPTM | M108: Mon | N108: 3500
A109: North Coast | B109: Atterson. P | C109: Meat/Poultry | D109: Thüringer Rostbratwurst | E109: 41680 | F109: 15 | G109: 64.5 | H109: 2014 | I109: 2 | J109: Feb | K109: YTD | L109: NotPTM | M109: Mon | N109: 967.5
A110: East Coast | B110: Anderson. P | C110: Condiments | D110: Louisiana Hot Spiced Okra | E110: 41681 | F110: 37 | G110: 112 | H110: 2014 | I110: 2 | J110: Feb | K110: YTD | L110: NotPTM | M110: Tue | N110: 4144
A111: West Coast | B111: Oddesy. Y | C111: Dairy Products | D111: Queso Cabrales | E111: 41681 | F111: 87 | G111: 75.5 | H111: 2014 | I111: 2 | J111: Feb | K111: YTD | L111: NotPTM | M111: Tue | N111: 6568.5
A112: South Coast | B112: Franly. S | C112: Meat/Poultry | D112: Tourtière | E112: 41681 | F112: 30 | G112: 163.5 | H112: 2014 | I112: 2 | J112: Feb | K112: YTD | L112: NotPTM | M112: Tue | N112: 4905
A113: East Coast | B113: Johnson. A | C113: Meat/Poultry | D113: Alice Mutton | E113: 41682 | F113: 75 | G113: 34.5 | H113: 2014 | I113: 2 | J113: Feb | K113: YTD | L113: NotPTM | M113: Wed | N113: 2587.5
A114: East Coast | B114: Peters. K | C114: Confections | D114: Gumbär Gummibärchen | E114: 41682 | F114: 87 | G114: 177 | H114: 2014 | I114: 2 | J114: Feb | K114: YTD | L114: NotPTM | M114: Wed | N114: 15399
A115: East Coast | B115: Bonders. P | C115: Seafood | D115: Jack's New England Clam Chowder | E115: 41682 | F115: 15 | G115: 26.5 | H115: 2014 | I115: 2 | J115: Feb | K115: YTD | L115: NotPTM | M115: Wed | N115: 397.5
A116: South Coast | B116: Grooner. T | C116: Dairy Products | D116: Queso Cabrales | E116: 41682 | F116: 37 | G116: 26.5 | H116: 2014 | I116: 2 | J116: Feb | K116: YTD | L116: NotPTM | M116: Wed | N116: 980.5
A117: South Coast | B117: Hannis. H | C117: Produce | D117: Rössle Sauerkraut | E117: 41682 | F117: 5 | G117: 77 | H117: 2014 | I117: 2 | J117: Feb | K117: YTD | L117: NotPTM | M117: Wed | N117: 385
A118: North Coast | B118: Connely. K | C118: Beverages | D118: Steeleye Stout | E118: 41682 | F118: 37 | G118: 25 | H118: 2014 | I118: 2 | J118: Feb | K118: YTD | L118: NotPTM | M118: Wed | N118: 925
A119: North Coast | B119: Dinnel. M | C119: Beverages | D119: Chartreuse verte | E119: 41683 | F119: 50 | G119: 66 | H119: 2014 | I119: 2 | J119: Feb | K119: YTD | L119: NotPTM | M119: Thu | N119: 3300
A120: South Coast | B120: Ilknis. K | C120: Meat/Poultry | D120: Tourtière | E120: 41683 | F120: 50 | G120: 16 | H120: 2014 | I120: 2 | J120: Feb | K120: YTD | L120: NotPTM | M120: Thu | N120: 800
A121: North Coast | B121: Edford. O | C121: Grains/Cereals | D121: Filo Mix | E121: 41684 | F121: 300 | G121: 86 | H121: 2014 | I121: 2 | J121: Feb | K121: YTD | L121: NotPTM | M121: Fri | N121: 25800
A122: South Coast | B122: Jarison. P | C122: Dairy Products | D122: Fløtemysost | E122: 41684 | F122: 130 | G122: 32.5 | H122: 2014 | I122: 2 | J122: Feb | K122: YTD | L122: NotPTM | M122: Fri | N122: 4225
A123: West Coast | B123: Pursly. U | C123: Dairy Products | D123: Gorgonzola Telino | E123: 41684 | F123: 15 | G123: 112 | H123: 2014 | I123: 2 | J123: Feb | K123: YTD | L123: NotPTM | M123: Fri | N123: 1680
A124: South Coast | B124: Kinsly. N | C124: Beverages | D124: Guaraná Fantástica | E124: 41684 | F124: 35 | G124: 111.5 | H124: 2014 | I124: 2 | J124: Feb | K124: YTD | L124: NotPTM | M124: Fri | N124: 3902.5
A125: West Coast | B125: Rooney. Y | C125: Condiments | D125: Louisiana Fiery Hot Pepper Sauce | E125: 41684 | F125: 50 | G125: 25 | H125: 2014 | I125: 2 | J125: Feb | K125: YTD | L125: NotPTM | M125: Fri | N125: 1250
A126: South Coast | B126: Lumford. T | C126: Confections | D126: Teatime Chocolate Biscuits | E126: 41684 | F126: 87 | G126: 119.5 | H126: 2014 | I126: 2 | J126: Feb | K126: YTD | L126: NotPTM | M126: Fri | N126: 10396.5
A127: North Coast | B127: Oxford. D | C127: Seafood | D127: Boston Crab Meat | E127: 41687 | F127: 50 | G127: 9 | H127: 2014 | I127: 2 | J127: Feb | K127: YTD | L127: NotPTM | M127: Mon | N127: 450
A128: West Coast | B128: Stanly. N | C128: Confections | D128: Gumbär Gummibärchen | E128: 41687 | F128: 70 | G128: 75.5 | H128: 2014 | I128: 2 | J128: Feb | K128: YTD | L128: NotPTM | M128: Mon | N128: 5285
A129: West Coast | B129: Toonly. S | C129: Grains/Cereals | D129: Filo Mix | E129: 41688 | F129: 137 | G129: 46.5 | H129: 2014 | I129: 2 | J129: Feb | K129: YTD | L129: NotPTM | M129: Tue | N129: 6370.5
A130: South Coast | B130: Moodley. L | C130: Seafood | D130: Ikura | E130: 41688 | F130: 25 | G130: 43 | H130: 2014 | I130: 2 | J130: Feb | K130: YTD | L130: NotPTM | M130: Tue | N130: 1075
A131: East Coast | B131: Newson. L | C131: Confections | D131: Tarte au sucre | E131: 41688 | F131: 50 | G131: 111.5 | H131: 2014 | I131: 2 | J131: Feb | K131: YTD | L131: NotPTM | M131: Tue | N131: 5575
A132: East Coast | B132: Perks. M | C132: Seafood | D132: Ikura | E132: 41689 | F132: 37 | G132: 45.5 | H132: =YEAR(E132) -> 2014 | I132: =MONTH(E132) -> 2 | J132: =TEXT(E132,"mmm") -> Feb | K132: =IF(I132<MONTH(TODAY()),"YTD","Not YTD") -> YTD | L132: =IF(AND(E132>=EarliestDate,E132<=MostRecentDate),"Past12Months","NotPTM") -> NotPTM | M132: =TEXT(E132,"ddd") -> Wed | N132: =F132*G132 -> 1683.5
A133: West Coast | B133: Numkin. M | C133: Condiments | D133: Louisiana Fiery Hot Pepper Sauce | E133: 41689 | F133: 37 | G133: 163.5 | H133: 2014 | I133: 2 | J133: Feb | K133: YTD | L133: NotPTM | M133: Wed | N133: 6049.5
A134: West Coast | B134: Oddesy. Y | C134: Condiments | D134: Original Frankfurter grüne Soße | E134: 41689 | F134: 50 | G134: 64.5 | H134: 2014 | I134: 2 | J134: Feb | K134: YTD | L134: NotPTM | M134: Wed | N134: 3225
A135: North Coast | B135: Altercon. C | C135: Meat/Poultry | D135: Pâté chinois | E135: 41689 | F135: 100 | G135: 36 | H135: 2014 | I135: 2 | J135: Feb | K135: YTD | L135: NotPTM | M135: Wed | N135: 3600
A136: East Coast | B136: Lavin. T | C136: Meat/Poultry | D136: Tourtière | E136: 41689 | F136: 250 | G136: 69.5 | H136: 2014 | I136: 2 | J136: Feb | K136: YTD | L136: NotPTM | M136: Wed | N136: 17375
A137: South Coast | B137: Franly. S | C137: Grains/Cereals | D137: Wimmers gute Semmelknödel | E137: 41689 | F137: 50 | G137: 62.5 | H137: 2014 | I137: 2 | J137: Feb | K137: YTD | L137: NotPTM | M137: Wed | N137: 3125
A138: East Coast | B138: Anderson. P | C138: Condiments | D138: Gula Malacca | E138: 41690 | F138: 62 | G138: 54 | H138: 2014 | I138: 2 | J138: Feb | K138: YTD | L138: NotPTM | M138: Thu | N138: 3348
A139: West Coast | B139: Pursly. U | C139: Produce | D139: Rössle Sauerkraut | E139: 41690 | F139: 75 | G139: 163.5 | H139: 2014 | I139: 2 | J139: Feb | K139: YTD | L139: NotPTM | M139: Thu | N139: 12262.5
A140: East Coast | B140: Johnson. A | C140: Confections | D140: Chocolade | E140: 41691 | F140: 125 | G140: 117.5 | H140: 2014 | I140: 2 | J140: Feb | K140: YTD | L140: NotPTM | M140: Fri | N140: 14687.5
A141: North Coast | B141: Atterson. P | C141: Dairy Products | D141: Geitost | E141: 41691 | F141: 75 | G141: 112 | H141: 2014 | I141: 2 | J141: Feb | K141: YTD | L141: NotPTM | M141: Fri | N141: 8400
A142: East Coast | B142: Peters. K | C142: Beverages | D142: Outback Lager | E142: 41691 | F142: 90 | G142: 198 | H142: 2014 | I142: 2 | J142: Feb | K142: YTD | L142: NotPTM | M142: Fri | N142: 17820
A143: South Coast | B143: Hannis. H | C143: Confections | D143: Pavlova | E143: 41691 | F143: 75 | G143: 77 | H143: 2014 | I143: 2 | J143: Feb | K143: YTD | L143: NotPTM | M143: Fri | N143: 5775
A144: South Coast | B144: Grooner. T | C144: Seafood | D144: Spegesild | E144: 41691 | F144: 62 | G144: 102.5 | H144: 2014 | I144: 2 | J144: Feb | K144: YTD | L144: NotPTM | M144: Fri | N144: 6355
A145: West Coast | B145: Rooney. Y | C145: Beverages | D145: Chartreuse verte | E145: 41694 | F145: 40 | G145: 108 | H145: 2014 | I145: 2 | J145: Feb | K145: YTD | L145: NotPTM | M145: Mon | N145: 4320
A146: South Coast | B146: Jarison. P | C146: Dairy Products | D146: Fløtemysost | E146: 41694 | F146: 37 | G146: 136.5 | H146: 2014 | I146: 2 | J146: Feb | K146: YTD | L146: NotPTM | M146: Mon | N146: 5050.5
A147: East Coast | B147: Bonders. P | C147: Meat/Poultry | D147: Perth Pasties | E147: 41694 | F147: 50 | G147: 165.5 | H147: 2014 | I147: 2 | J147: Feb | K147: YTD | L147: NotPTM | M147: Mon | N147: 8275
A148: South Coast | B148: Ilknis. K | C148: Condiments | D148: Sirop d'érable | E148: 41694 | F148: 52 | G148: 72 | H148: 2014 | I148: 2 | J148: Feb | K148: YTD | L148: NotPTM | M148: Mon | N148: 3744
A149: South Coast | B149: Kinsly. N | C149: Confections | D149: Maxilaku | E149: 41695 | F149: 125 | G149: 77 | H149: 2014 | I149: 2 | J149: Feb | K149: YTD | L149: NotPTM | M149: Tue | N149: 9625
A150: East Coast | B150: Newson. L | C150: Dairy Products | D150: Raclette Courdavault | E150: 41695 | F150: 70 | G150: 93 | H150: 2014 | I150: 2 | J150: Feb | K150: YTD | L150: NotPTM | M150: Tue | N150: 6510
A151: North Coast | B151: Connely. K | C151: Confections | D151: Sir Rodney's Scones | E151: 41695 | F151: 52 | G151: 45 | H151: 2014 | I151: 2 | J151: Feb | K151: YTD | L151: NotPTM | M151: Tue | N151: 2340
A152: South Coast | B152: Moodley. L | C152: Dairy Products | D152: Fløtemysost | E152: 41696 | F152: 10 | G152: 27.5 | H152: 2014 | I152: 2 | J152: Feb | K152: YTD | L152: NotPTM | M152: Wed | N152: 275
A153: South Coast | B153: Lumford. T | C153: Grains/Cereals | D153: Gnocchi di nonna Alice | E153: 41696 | F153: 50 | G153: 43 | H153: 2014 | I153: 2 | J153: Feb | K153: YTD | L153: NotPTM | M153: Wed | N153: 2150
A154: North Coast | B154: Dinnel. M | C154: Confections | D154: Gumbär Gummibärchen | E154: 41696 | F154: 50 | G154: 122 | H154: 2014 | I154: 2 | J154: Feb | K154: YTD | L154: NotPTM | M154: Wed | N154: 6100
A155: East Coast | B155: Lavin. T | C155: Beverages | D155: Ipoh Coffee | E155: 41696 | F155: 100 | G155: 36 | H155: 2014 | I155: 2 | J155: Feb | K155: YTD | L155: NotPTM | M155: Wed | N155: 3600
A156: West Coast | B156: Stanly. N | C156: Produce | D156: Rössle Sauerkraut | E156: 41696 | F156: 100 | G156: 125 | H156: 2014 | I156: 2 | J156: Feb | K156: YTD | L156: NotPTM | M156: Wed | N156: 12500
A157: West Coast | B157: Numkin. M | C157: Dairy Products | D157: Mozzarella di Giovanni | E157: 41697 | F157: 52 | G157: 32 | H157: 2014 | I157: 2 | J157: Feb | K157: YTD | L157: NotPTM | M157: Thu | N157: 1664
A158: South Coast | B158: Franly. S | C158: Seafood | D158: Spegesild | E158: 41697 | F158: 150 | G158: 86 | H158: 2014 | I158: 2 | J158: Feb | K158: YTD | L158: NotPTM | M158: Thu | N158: 12900
A159: West Coast | B159: Toonly. S | C159: Produce | D159: Uncle Bob's Organic Dried Pears | E159: 41697 | F159: 2 | G159: 21.5 | H159: 2014 | I159: 2 | J159: Feb | K159: YTD | L159: NotPTM | M159: Thu | N159: 43
A160: East Coast | B160: Perks. M | C160: Seafood | D160: Nord-Ost Matjeshering | E160: 41698 | F160: 7 | G160: 165.5 | H160: 2014 | I160: 2 | J160: Feb | K160: YTD | L160: NotPTM | M160: Fri | N160: 1158.5
A161: South Coast | B161: Hannis. H | C161: Meat/Poultry | D161: Pâté chinois | E161: 41698 | F161: 70 | G161: 16 | H161: 2014 | I161: 2 | J161: Feb | K161: YTD | L161: NotPTM | M161: Fri | N161: 1120
A162: South Coast | B162: Grooner. T | C162: Beverages | D162: Rhönbräu Klosterbier | E162: 41698 | F162: 75 | G162: 34 | H162: 2014 | I162: 2 | J162: Feb | K162: YTD | L162: NotPTM | M162: Fri | N162: 2550
A163: North Coast | B163: Edford. O | C163: Confections | D163: Scottish Longbreads | E163: 41698 | F163: 125 | G163: 50 | H163: 2014 | I163: 2 | J163: Feb | K163: YTD | L163: NotPTM | M163: Fri | N163: 6250
A164: East Coast | B164: Anderson. P | C164: Confections | D164: Sir Rodney's Scones | E164: 41698 | F164: 40 | G164: 79 | H164: 2014 | I164: 2 | J164: Feb | K164: YTD | L164: NotPTM | M164: Fri | N164: 3160
A165: West Coast | B165: Oddesy. Y | C165: Seafood | D165: Konbu | E165: 41701 | F165: 50 | G165: 66 | H165: 2014 | I165: 3 | J165: Mar | K165: YTD | L165: NotPTM | M165: Mon | N165: 3300
A166: West Coast | B166: Pursly. U | C166: Grains/Cereals | D166: Tunnbröd | E166: 41701 | F166: 62 | G166: 58.5 | H166: 2014 | I166: 3 | J166: Mar | K166: YTD | L166: NotPTM | M166: Mon | N166: 3627
A167: North Coast | B167: Oxford. D | C167: Dairy Products | D167: Camembert Pierrot | E167: 41702 | F167: 62 | G167: 16 | H167: 2014 | I167: 3 | J167: Mar | K167: YTD | L167: NotPTM | M167: Tue | N167: 992
A168: East Coast | B168: Peters. K | C168: Condiments | D168: Chef Anton's Cajun Seasoning | E168: 41702 | F168: 75 | G168: 136.5 | H168: 2014 | I168: 3 | J168: Mar | K168: YTD | L168: NotPTM | M168: Tue | N168: 10237.5
A169: East Coast | B169: Newson. L | C169: Grains/Cereals | D169: Gnocchi di nonna Alice | E169: 41702 | F169: 20 | G169: 119.5 | H169: 2014 | I169: 3 | J169: Mar | K169: YTD | L169: NotPTM | M169: Tue | N169: 2390
A170: East Coast | B170: Johnson. A | C170: Beverages | D170: Ipoh Coffee | E170: 41702 | F170: 52 | G170: 32.5 | H170: 2014 | I170: 3 | J170: Mar | K170: YTD | L170: NotPTM | M170: Tue | N170: 1690
A171: North Coast | B171: Altercon. C | C171: Grains/Cereals | D171: Singaporean Hokkien Fried Mee | E171: 41702 | F171: 25 | G171: 75.5 | H171: 2014 | I171: 3 | J171: Mar | K171: YTD | L171: NotPTM | M171: Tue | N171: 1887.5
A172: East Coast | B172: Bonders. P | C172: Confections | D172: Teatime Chocolate Biscuits | E172: 41702 | F172: 45 | G172: 445.5 | H172: 2014 | I172: 3 | J172: Mar | K172: YTD | L172: NotPTM | M172: Tue | N172: 20047.5
A173: West Coast | B173: Rooney. Y | C173: Seafood | D173: Boston Crab Meat | E173: 41703 | F173: 12 | G173: 43 | H173: 2014 | I173: 3 | J173: Mar | K173: YTD | L173: NotPTM | M173: Wed | N173: 516
A174: North Coast | B174: Atterson. P | C174: Beverages | D174: Guaraná Fantástica | E174: 41703 | F174: 30 | G174: 50 | H174: 2014 | I174: 3 | J174: Mar | K174: YTD | L174: NotPTM | M174: Wed | N174: 1500
A175: South Coast | B175: Ilknis. K | C175: Seafood | D175: Røgede sild | E175: 41703 | F175: 100 | G175: 68 | H175: 2014 | I175: 3 | J175: Mar | K175: YTD | L175: NotPTM | M175: Wed | N175: 6800
A176: East Coast | B176: Lavin. T | C176: Meat/Poultry | D176: Thüringer Rostbratwurst | E176: 41703 | F176: 50 | G176: 136.5 | H176: 2014 | I176: 3 | J176: Mar | K176: YTD | L176: NotPTM | M176: Wed | N176: 6825
A177: West Coast | B177: Stanly. N | C177: Confections | D177: Valkoinen suklaa | E177: 41703 | F177: 20 | G177: 93 | H177: 2014 | I177: 3 | J177: Mar | K177: YTD | L177: NotPTM | M177: Wed | N177: 1860
A178: South Coast | B178: Jarison. P | C178: Beverages | D178: Guaraná Fantástica | E178: 41704 | F178: 45 | G178: 190.5 | H178: 2014 | I178: 3 | J178: Mar | K178: YTD | L178: NotPTM | M178: Thu | N178: 8572.5
A179: North Coast | B179: Dinnel. M | C179: Confections | D179: NuNuCa Nuß-Nougat-Creme | E179: 41704 | F179: 5 | G179: 69.5 | H179: 2014 | I179: 3 | J179: Mar | K179: YTD | L179: NotPTM | M179: Thu | N179: 347.5
A180: North Coast | B180: Connely. K | C180: Dairy Products | D180: Queso Cabrales | E180: 41704 | F180: 37 | G180: 165.5 | H180: 2014 | I180: 3 | J180: Mar | K180: YTD | L180: NotPTM | M180: Thu | N180: 6123.5
A181: West Coast | B181: Toonly. S | C181: Seafood | D181: Spegesild | E181: 41704 | F181: 37 | G181: 32 | H181: 2014 | I181: 3 | J181: Mar | K181: YTD | L181: NotPTM | M181: Thu | N181: 1184
A182: North Coast | B182: Edford. O | C182: Beverages | D182: Ipoh Coffee | E182: 41705 | F182: 87 | G182: 62.5 | H182: 2014 | I182: 3 | J182: Mar | K182: YTD | L182: NotPTM | M182: Fri | N182: 5437.5
A183: West Coast | B183: Numkin. M | C183: Seafood | D183: Nord-Ost Matjeshering | E183: 41705 | F183: 25 | G183: 27.5 | H183: 2014 | I183: 3 | J183: Mar | K183: YTD | L183: NotPTM | M183: Fri | N183: 687.5
A184: South Coast | B184: Kinsly. N | C184: Beverages | D184: Chang | E184: 41708 | F184: 30 | G184: 83.5 | H184: 2014 | I184: 3 | J184: Mar | K184: YTD | L184: NotPTM | M184: Mon | N184: 2505
A185: North Coast | B185: Oxford. D | C185: Condiments | D185: Gula Malacca | E185: 41708 | F185: 75 | G185: 108 | H185: 2014 | I185: 3 | J185: Mar | K185: YTD | L185: NotPTM | M185: Mon | N185: 8100
A186: North Coast | B186: Altercon. C | C186: Confections | D186: Pavlova | E186: 41708 | F186: 75 | G186: 225 | H186: 2014 | I186: 3 | J186: Mar | K186: YTD | L186: NotPTM | M186: Mon | N186: 16875
A187: North Coast | B187: Connely. K | C187: Seafood | D187: Carnarvon Tigers | E187: 41709 | F187: 45 | G187: 163.5 | H187: 2014 | I187: 3 | J187: Mar | K187: YTD | L187: NotPTM | M187: Tue | N187: 7357.5
A188: East Coast | B188: Anderson. P | C188: Grains/Cereals | D188: Gnocchi di nonna Alice | E188: 41709 | F188: 37 | G188: 64.5 | H188: 2014 | I188: 3 | J188: Mar | K188: YTD | L188: NotPTM | M188: Tue | N188: 2386.5
A189: West Coast | B189: Oddesy. Y | C189: Grains/Cereals | D189: Tunnbröd | E189: 41709 | F189: 30 | G189: 9 | H189: 2014 | I189: 3 | J189: Mar | K189: YTD | L189: NotPTM | M189: Tue | N189: 270
A190: North Coast | B190: Atterson. P | C190: Produce | D190: Uncle Bob's Organic Dried Pears | E190: 41709 | F190: 200 | G190: 16 | H190: 2014 | I190: 3 | J190: Mar | K190: YTD | L190: NotPTM | M190: Tue | N190: 3200
A191: East Coast | B191: Perks. M | C191: Grains/Cereals | D191: Wimmers gute Semmelknödel | E191: 41709 | F191: 30 | G191: 77 | H191: 2014 | I191: 3 | J191: Mar | K191: YTD | L191: NotPTM | M191: Tue | N191: 2310
A192: North Coast | B192: Dinnel. M | C192: Beverages | D192: Guaraná Fantástica | E192: 41710 | F192: 150 | G192: 61 | H192: 2014 | I192: 3 | J192: Mar | K192: YTD | L192: NotPTM | M192: Wed | N192: 9150
A193: South Coast | B193: Lumford. T | C193: Produce | D193: Manjimup Dried Apples | E193: 41710 | F193: 52 | G193: 66 | H193: 2014 | I193: 3 | J193: Mar | K193: YTD | L193: NotPTM | M193: Wed | N193: 3432
A194: South Coast | B194: Franly. S | C194: Seafood | D194: Boston Crab Meat | E194: 41711 | F194: 75 | G194: 34 | H194: 2014 | I194: 3 | J194: Mar | K194: YTD | L194: NotPTM | M194: Thu | N194: 2550
A195: East Coast | B195: Johnson. A | C195: Dairy Products | D195: Fløtemysost | E195: 41711 | F195: 75 | G195: 119.5 | H195: 2014 | I195: 3 | J195: Mar | K195: YTD | L195: NotPTM | M195: Thu | N195: 8962.5
A196: West Coast | B196: Rooney. Y | C196: Dairy Products | D196: Geitost | E196: 41711 | F196: 105 | G196: 64.5 | H196: =YEAR(E196) -> 2014 | I196: =MONTH(E196) -> 3 | J196: =TEXT(E196,"mmm") -> Mar | K196: =IF(I196<MONTH(TODAY()),"YTD","Not YTD") -> YTD | L196: =IF(AND(E196>=EarliestDate,E196<=MostRecentDate),"Past12Months","NotPTM") -> NotPTM | M196: =TEXT(E196,"ddd") -> Thu | N196: =F196*G196 -> 6772.5
A197: West Coast | B197: Pursly. U | C197: Beverages | D197: Rhönbräu Klosterbier | E197: 41711 | F197: 87 | G197: 45 | H197: 2014 | I197: 3 | J197: Mar | K197: YTD | L197: NotPTM | M197: Thu | N197: 3915
A198: North Coast | B198: Edford. O | C198: Produce | D198: Rössle Sauerkraut | E198: 41711 | F198: 30 | G198: 54 | H198: 2014 | I198: 3 | J198: Mar | K198: YTD | L198: NotPTM | M198: Thu | N198: 1620
A199: South Coast | B199: Moodley. L | C199: Produce | D199: Tofu | E199: 41711 | F199: 50 | G199: 64.5 | H199: 2014 | I199: 3 | J199: Mar | K199: YTD | L199: NotPTM | M199: Thu | N199: 3225
A200: West Coast | B200: Stanly. N | C200: Dairy Products | D200: Gorgonzola Telino | E200: 41712 | F200: 5 | G200: 86 | H200: 2014 | I200: 3 | J200: Mar | K200: YTD | L200: NotPTM | M200: Fri | N200: 430
A201: West Coast | B201: Toonly. S | C201: Beverages | D201: Lakkalikööri | E201: 41712 | F201: 75 | G201: 948.5 | H201: 2014 | I201: 3 | J201: Mar | K201: YTD | L201: NotPTM | M201: Fri | N201: 71137.5
A202: North Coast | B202: Oxford. D | C202: Condiments | D202: Louisiana Hot Spiced Okra | E202: 41712 | F202: 52 | G202: 36 | H202: 2014 | I202: 3 | J202: Mar | K202: YTD | L202: NotPTM | M202: Fri | N202: 1872
... 2461 more rows

Sheet Drivers
B2: YTD Dates Defiition | L2: Top Views | M2: Top 5 Products
B3: For this dashboard we shall assume days from 1st January | J3: Top Views
B4: to the end of the most recent month | J4: Top 5 Products
B5: e.g. for year 2016 we have: | J5: Bottom 5 Products
B6: Start Date | C6: 42370
B7: End Date | C7: =EOMONTH(TODAY(),-1) -> 43008
B8: Or equivalently, check if the month number is less than the | J8: Top Metrics Dynamic Title
B9: current month
J10: Text | K10: Formula
B11: Past 12 months defined | J11: ="YTD Revenue: "&selCateg&" - "&selYR -> YTD Revenue: Condiments - 2015 | K11: ="YTD Revenue: "&selCateg&" - "&selYR
B12: This is counting dates from the end of last month, count backwards | J12: =CONCATENATE("YTD Revenue: ",selCateg," - ",selYR) -> YTD Revenue: Condiments - 2015 | K12: =CONCATENATE("YTD Revenue: ",selCateg," - ",selYR)
B13: dates that fall within the last 12 months
B14: That is,
B15: Most recent date | C15: =EOMONTH(TODAY(),-1) -> 43008 | D15: 30/06/2016 | J15: Dynamic Chart Titles
B16: Earliest Date | C16: =EOMONTH(C15,-12)+1 -> 42644 | D16: 01/07/2015 | J16: Text | K16: Formula
J17: ="YTD Monthly Revenue for "&selLocation -> YTD Monthly Revenue for South Coast | K17: ="YTD Revenue for "&selLocation
J18: ="Product Revenue Share (in $ '000)"&" :- "&selLocation&", "&selCateg&" for "&selYR -> Product Revenue Share (in $ '000) :- South Coast, Condiments for 2015 | K18: ="Product Revenue Share (in $ '000)"&" :- "&selLocation&", "&selCateg&" for "&selYR
J19: ="Sales Agents Performance in "&selLocation&" location in "&selYR -> Sales Agents Performance in South Coast location in 2015 | K19: ="Sales Agents Performance in "&selLocation&" location in "&selYR
J20: ="Location performance: "&selCateg&" "&selYR -> Location performance: Condiments 2015 | K20: ="Location performance: "&selCateg&" "&selYR
